Workbook

Sheet Informe-4
A1: TELEFÓNICA DEL PERÚ S.A.A.-2014-4 RECONCILIACIÓN DEL ESTADO DE RESULTADOS ESTATUTARIO CON EL DE CONTABILIDAD SEPARADA-15042016
A3: INFORME 4: RECONCILIACIÓN DEL ESTADO DE RESULTADOS ESTATUTARIO CON EL DE CONTABILIDAD SEPARADA
A5: Periodo de reporte: Al 31 de Diciembre 2014
A7: Expresado en Miles Nuevos Soles | B7: Estado de Resultados Estatutario | C7: Ajustes | D7: Estado de Resultados de Contabilidad Separada | E7: Nota
A8: INGRESOS | B8: =SUM(B9:B15) -> 9308716.176 | C8: =SUM(C9:C15) -> 0 | D8: =+B8 -> 9308716.176
A9: Cargos de Conexión | B9: 52646.75962 | C9: 0 | D9: =+B9 -> 52646.75962
A10: Rentas y Alquileres | B10: 1472516.62 | C10: 0 | D10: 1472516.62
A11: Uso de Servicios | B11: 6754743.701 | C11: 0 | D11: 6754743.701
A12: Ventas | B12: 721610.1846 | C12: 0 | D12: 721610.1846
A13: Otros | B13: 106430.2512 | C13: 0 | D13: 106430.2512
A14: Ingresos por Oferta Mayorista (no incluye Interconexión) | B14: 172178.2519 | C14: 0 | D14: 172178.2519
A15: Ingresos por servicios de Interconexión | B15: 28590.40819 | C15: 0 | D15: 28590.40819
A16: GASTOS | B16: =SUM(B17:B23) -> -6477484.8 | C16: =SUM(C17:C23) -> 0 | D16: =SUM(D17:D23) -> -6477484.8
A17: Gastos de personal | B17: -1141890.326 | C17: 0 | D17: -1141890.326
A18: Gastos generales y administrativos | B18: -3754710.979 | C18: 0 | D18: -3754710.979
A19: Existencias | B19: =-1299837.12323346-1 -> -1299838.123 | C19: 0 | D19: -1299838.123
A20: Capitalización de Gastos por Construcción de Planta o Trabajo para el Inmovilizado | B20: 70969.8693 | C20: 0 | D20: 70969.8693
A21: Honorarios por transferencia de capacidad tecnica | B21: -163161.8146 | C21: 0 | D21: -163161.8146
A22: Provisión para desvalorización de activos | B22: -187268.3046 | C22: 0 | D22: -187268.3046
A23: Otros Gastos Operativos | B23: -1585.122217 | C23: 0 | D23: -1585.122217
A24: UTILIDAD (PÉRDIDA) DE OPERACIÓN (EBITDA) | B24: =+B8+B16 -> 2831231.376 | C24: =+C8-C16 -> 0 | D24: =+D8+D16 -> 2831231.376
A25: Depreciación | B25: -970076 | C25: -73552 | D25: =+C25+B25 -> -1043628 | E25: 4.1
A26: Amortización | B26: -213309 | C26: -23777 | D26: =+C26+B26 -> -237086 | E26: 4.2
A27: UTILIDAD (PÉRDIDA) ANTES DE INTERESES E IMPUESTOS (EBIT) | B27: =SUM(B24:B26) -> 1647846.376 | C27: =SUM(C24:C26) -> -97329 | D27: =SUM(D24:D26) -> 1550517.376
A28: Diferencias de Cambio Neto | B28: -3934 | C28: 0 | D28: -3934
A29: Gastos Financieros | B29: -229178 | C29: 0 | D29: -229178
A30: Ingresos Financieros | B30: 15592 | C30: 0 | D30: 15592
A31: Participación en Resultados de Partes Relacionadas | B31: 79617 | C31: 0 | D31: 79617
A32: UTILIDAD (PÉRDIDA) ANTES DE IMPUESTOS | B32: =+SUM(B27:B31) -> 1509943.376 | C32: =+SUM(C27:C31) -> -97329 | D32: =+SUM(D27:D31) -> 1412614.376
A33: impuestos a las ganancias | B33: -547799 | C33: 0 | D33: -547799
A34: UTILIDAD (PÉRDIDA) NETA | B34: =+SUM(B32:B33)+1 -> 962145.3763 | C34: =+SUM(C32:C33) -> -97329 | D34: 864815.3763

Sheet Hoja1
